bitfinex/quotes_SOLUSD_20251228
["timestamp","ask_amount","ask_price","bid_price","bid_amount"]
[1766890261091,0.71,124.32,124.3,0.72]
[1766890261290,0.71,124.32,124.3,2.66138053]
[1766890266991,0.71,124.32,124.3,0.72]
[1766890300013,3.03394862,124.33,124.3,0.72]
[1766890300217,0.68,124.33,124.3,0.72]
[1766890305399,3.71394862,124.33,124.3,0.72]
[1766890306014,0.68,124.33,124.3,0.72]
[1766890334641,3.71394862,124.33,124.3,0.72]
[1766890339837,3.75394862,124.33,124.3,0.72]
[1766890350359,0.72,124.33,124.3,3.75394862]
[1766890351062,3.75394862,124.33,124.3,3.75394862]
[1766890351662,0.72,124.33,124.3,3.75394862]
[1766890351861,3.75394862,124.33,124.3,3.75394862]
[1766890353961,2.66155098,124.33,124.3,2.66155098]
[1766890354660,8.76224945,124.35,124.31,1.94155098]
[1766890354834,22.74143766,124.36,124.32,2.61155098]
[1766890355040,0.72,124.36,124.33,2.61155098]
[1766890355240,2.66155098,124.36,124.33,0.67]
[1766890355852,2.66155098,124.34,124.29,0.67]
[1766890356055,1.94155098,124.33,124.3,0.67]
[1766890358683,2.66155098,124.33,124.3,0.67]
[1766890364674,2.66155098,124.33,124.3,2.61155098]
[1766890365278,0.72,124.33,124.3,2.61155098]
[1766890365482,2.66155098,124.33,124.3,2.61155098]
[1766890367262,2.66155098,124.33,124.3,0.67]
[1766890367458,2.66155098,124.33,124.3,2.61155098]
[1766890368977,0.72,124.33,124.3,2.61155098]
[1766890371886,0.72,124.33,124.31,0.71]
[1766890384198,0.72,124.33,124.31,2.65155098]
[1766890384377,8.04227067,124.34,124.32,0.71]
[1766890384691,16.7779631,124.35,124.32,0.71]
[1766890385096,0.69,124.34,124.32,0.71]
[1766890387399,0.69,124.34,124.31,2.65155098]
[1766890388288,0.69,124.33,124.29,8.04227067]
[1766890388598,0.69,124.33,124.3,2.65155098]
[1766890389595,0.69,124.33,124.3,0.71]
[1766890389800,0.69,124.33,124.3,2.65155098]
[1766890399403,0.69,124.33,124.31,0.71]
[1766890413237,0.71,124.31,124.29,8.04565031]
[1766890413415,2.65155098,124.31,124.28,0.91]
[1766890414121,10.89916125,124.31,124.28,0.91]
[1766890415923,11.99258276,124.31,124.28,0.91]
[1766890418325,0.71,124.3,124.28,0.2]
[1766890419112,0.71,124.3,124.28,0.91]
[1766890419623,0.71,124.3,124.28,0.2]
[1766890419821,8.24761027,124.31,124.28,0.2]
[1766890419822,3.74497249,124.29,124.28,0.2]
[1766890420205,11.99258276,124.29,124.28,0.2]
[1766890420714,3.74497249,124.29,124.28,0.2]
[1766890435039,3.03497249,124.29,124.28,0.87]
[1766890436532,3.03497249,124.29,124.28,0.2]
[1766890439542,11.93813658,124.3,124.28,0.2]
[1766890439737,3.03497249,124.29,124.28,0.2]
[1766890448647,14.97310907,124.3,124.28,0.2]
[1766890449431,11.93813658,124.3,124.28,0.2]
[1766890449750,14.97310907,124.3,124.28,0.2]
[1766890456253,3.03497249,124.31,124.29,0.66]
[1766890456832,3.73497249,124.31,124.29,0.66]
[1766890457238,3.03497249,124.31,124.28,0.86]
[1766890457439,3.73497249,124.31,124.28,0.86]
[1766890459757,3.03497249,124.31,124.28,0.86]
[1766890460057,0.7,124.3,124.28,0.86]
[1766890460259,3.73497249,124.31,124.28,0.86]
[1766890463964,0.7,124.3,124.28,0.86]
[1766890475776,11.07947781,124.31,124.28,0.86]
[1766890475968,11.77947781,124.31,124.28,0.86]
[1766890476774,0.7,124.3,124.28,0.86]
[1766890500786,9.98695487,124.31,124.28,0.86]
[1766890501196,0.72,124.3,124.28,0.86]
[1766890502191,18.64281754,124.33,124.28,0.2]
[1766890502411,15.42,124.33,124.3,2.64244955]
[1766890502705,0.72,124.33,124.3,0.7]
[1766890502886,0.72,124.33,124.3,2.64244955]
[1766890503277,8.76327329,124.33,124.3,2.64244955]
[1766890505003,8.76327329,124.33,124.3,0.7]
[1766890507895,0.72,124.32,124.3,0.7]
[1766890512296,8.76327329,124.33,124.3,0.7]
[1766890512900,8.76327329,124.33,124.3,2.64244955]
[1766890520409,0.72,124.33,124.31,0.67]
[1766890520599,0.71,124.36,124.33,0.67]
[1766890520907,0.71,124.35,124.33,0.67]
[1766890521477,0.71,124.35,124.31,1.94244955]
[1766890521478,0.71,124.35,124.32,0.67]
[1766890521683,0.71,124.35,124.32,2.61244955]
[1766890522204,0.71,124.35,124.33,0.67]
[1766890527313,0.71,124.35,124.33,2.61244955]
[1766890530025,0.71,124.37,124.34,2.61244955]
[1766890530392,0.71,124.37,124.34,1.94244955]
[1766890530617,25.39281128,124.38,124.35,0.67]
[1766890531121,0.71,124.37,124.35,0.67]
[1766890531491,0.71,124.37,124.34,2.61244955]
[1766890533118,0.71,124.36,124.34,0.67]
[1766890569048,0.71,124.36,124.34,3.70198286]
[1766890573158,0.71,124.36,124.33,3.72198286]
[1766890573339,0.71,124.36,124.34,0.69]
[1766890580857,0.71,124.36,124.34,3.72198286]
[1766890586969,0.71,124.36,124.34,0.69]
[1766890587674,0.71,124.36,124.34,3.72198286]
[1766890597175,0.71,124.36,124.34,0.69]
[1766890602576,0.71,124.36,124.34,2.6304786]
[1766890606985,0.71,124.36,124.34,0.69]
[1766890609182,8.04068705,124.37,124.34,2.6304786]
[1766890609363,8.73068705,124.37,124.35,0.71]
[1766890609682,8.73068705,124.37,124.34,2.6504786]
[1766890611986,10.67116565,124.37,124.34,2.6504786]
[1766890613991,10.67116565,124.37,124.34,0.71]
[1766890620992,10.67116565,124.37,124.34,2.6504786]
[1766890621690,2.6304786,124.37,124.34,2.6504786]
[1766890621889,0.69,124.37,124.34,2.6504786]
[1766890631207,2.6304786,124.37,124.34,0.71]
[1766890631998,0.69,124.37,124.34,0.71]
[1766890637898,0.69,124.37,124.34,2.6504786]
[1766890649333,0.69,124.37,124.34,0.71]
[1766890676057,0.69,124.37,124.34,3.74173926]
[1766890676956,0.69,124.37,124.34,0.71]
[1766890680379,0.69,124.37,124.34,3.74173926]
[1766890682989,3.03173926,124.36,124.29,61.9]
[1766890683158,3.03173926,124.37,124.3,14.7]
[1766890683357,0.67,124.37,124.35,3.73173926]
[1766890683558,0.67,124.37,124.35,0.7]
[1766890688090,0.67,124.37,124.35,0.649]
[1766890706104,51.48786712,124.4,124.36,0.7]
[1766890706105,8.73923144,124.39,124.36,0.7]
[1766890708088,8.73923144,124.39,124.36,3.73173926]
[1766890709809,0.7,124.39,124.36,3.73173926]
[1766890713115,0.7,124.39,124.36,3.03173926]
[1766890713318,0.7,124.39,124.37,0.7]
[1766890716016,0.7,124.39,124.36,3.73173926]
[1766890721724,11.07058806,124.38,124.36,3.73173926]
[1766890722022,11.77058806,124.38,124.35,0.7]
[1766890722323,11.77058806,124.38,124.35,2.63987079]
[1766890749957,11.77058806,124.38,124.35,0.7]
[1766890750147,11.77058806,124.38,124.35,2.63987079]
[1766890750638,19.11064946,124.38,124.35,2.63987079]
[1766890750844,0.67,124.37,124.35,2.63987079]
[1766890751050,20.76700355,124.37,124.35,2.63987079]
[1766890757465,0.71,124.36,124.33,0.66]
[1766890757639,20.09700355,124.37,124.34,1.93987079]
[1766890757838,20.80700355,124.37,124.34,2.59987079]
[1766890759952,0.71,124.36,124.33,2.59987079]
[1766890760159,21.51700355,124.36,124.33,2.59987079]
[1766890761557,0.71,124.36,124.33,2.59987079]
[1766890761946,0.71,124.36,124.34,1.93987079]
[1766890762559,3.93126031,124.36,124.34,1.93987079]
[1766890763761,3.93126031,124.36,124.34,2.59987079]
[1766890764465,3.93126031,124.36,124.34,1.93987079]
[1766890766065,3.93126031,124.36,124.33,2.59987079]
[1766890766565,3.93126031,124.36,124.33,0.66]
[1766890766758,3.93126031,124.36,124.33,2.59987079]
[1766890770764,5.1611311,124.36,124.31,8.04440511]
[1766890770964,0.71,124.35,124.32,2.59987079]
[1766890771747,8.75057106,124.35,124.32,2.59987079]
[1766890780984,8.75057106,124.35,124.33,1.93987079]
[1766890781474,0.71,124.35,124.33,1.93987079]
[1766890781977,0.71,124.36,124.34,3.03163214]
[1766890783174,0.71,124.36,124.33,3.69163214]
[1766890801198,0.71,124.36,124.33,0.66]
[1766890801365,0.71,124.36,124.33,3.69163214]
[1766890801768,8.04057106,124.37,124.35,0.69]
[1766890801974,0.66,124.37,124.34,3.72163214]
[1766890803685,0.66,124.37,124.34,0.69]
[1766890803886,0.66,124.37,124.34,3.72163214]
[1766890806967,0.66,124.37,124.34,0.69]
[1766890809090,3.69163214,124.37,124.34,0.69]
[1766890809787,0.66,124.37,124.34,0.69]
[1766890809992,3.69163214,124.37,124.34,0.69]
[1766890813091,3.59513421,124.37,124.34,0.69]
[1766890814492,0.56350207,124.37,124.34,0.69]
[1766890829900,16.08286461,124.38,124.34,0.69]
[1766890830507,16.75286461,124.38,124.34,0.69]
[1766890830706,0.67,124.37,124.34,0.69]
[1766890832411,0.67,124.37,124.34,3.72163214]
[1766890834708,0.67,124.37,124.34,0.69]
[1766890834901,0.67,124.37,124.34,3.72163214]
[1766890836509,0.67,124.37,124.34,0.69]
[1766890836713,0.67,124.36,124.34,0.69]
[1766890837513,3.70163214,124.36,124.34,0.69]
[1766890838087,0.67,124.36,124.34,0.69]
[1766890839615,3.70163214,124.36,124.34,0.69]
[1766890841320,0.67,124.36,124.34,0.69]
[1766890865244,2.6006609,124.38,124.35,0.71]
[1766890865626,0.66,124.37,124.35,0.71]
[1766890867848,0.66,124.37,124.34,2.6506609]
[1766890877653,0.66,124.37,124.34,0.71]
[1766890881488,0.66,124.37,124.34,1.9406609]
[1766890881679,0.66,124.37,124.34,2.6406609]
[1766890883085,0.66,124.37,124.34,0.7]
[1766890883386,0.66,124.37,124.34,2.6406609]
[1766890894993,0.66,124.37,124.34,0.7]
[1766890895178,0.66,124.37,124.34,2.6406609]
[1766890898594,0.66,124.36,124.33,2.6406609]
[1766890898791,0.66,124.36,124.33,1.9406609]
[1766890899008,0.66,124.36,124.34,0.7]
[1766890900593,8.70066469,124.37,124.34,2.6406609]
[1766890901611,0.66,124.36,124.34,2.6406609]
[1766890902002,0.66,124.36,124.34,3.73168084]
[1766890906112,16.08132938,124.37,124.34,3.73168084]
[1766890906414,16.75132938,124.37,124.34,3.73168084]
[1766890908713,0.7,124.36,124.34,3.73168084]
[1766890910017,0.7,124.36,124.34,0.7]
[1766890911020,0.7,124.36,124.34,3.73168084]
[1766890916926,0.7,124.36,124.34,0.7]
[1766890917526,0.7,124.36,124.33,0.7]
[1766890917726,0.7,124.36,124.33,3.73168084]
[1766890922224,0.7,124.36,124.33,0.7]
[1766890922410,0.7,124.36,124.33,3.73168084]
[1766890931135,0.7,124.36,124.33,0.7]
[1766890931326,0.7,124.36,124.33,3.73168084]
[1766890931523,24.15945238,124.36,124.33,3.73168084]
[1766890931838,0.7,124.35,124.33,3.73168084]
[1766890932042,0.7,124.35,124.33,0.7]
[1766890932227,0.7,124.35,124.33,3.73168084]
[1766890933439,24.15945238,124.36,124.33,3.73168084]
[1766890933737,0.7,124.36,124.33,3.73168084]
[1766890938847,0.7,124.36,124.33,0.7]
[1766890939151,0.7,124.36,124.33,3.73168084]
[1766890939647,24.85945238,124.36,124.33,3.73168084]
[1766890944441,24.15945238,124.36,124.33,3.73168084]
[1766890944644,24.85945238,124.36,124.33,3.73168084]
[1766890948527,0.7,124.36,124.33,3.73168084]
[1766890952950,0.7,124.36,124.33,0.7]
[1766890961935,0.7,124.36,124.33,3.73168084]
[1766890962242,15.4,124.36,124.33,3.73168084]
[1766890963449,0.7,124.36,124.33,3.73168084]
[1766890963754,0.7,124.36,124.33,0.7]
[1766890966558,15.4,124.36,124.33,0.7]
[1766890976064,0.7,124.36,124.33,0.7]
[1766890976266,0.7,124.36,124.33,2.64046682]
[1766890980376,0.7,124.36,124.33,0.7]
[1766890980680,18.04046682,124.36,124.33,0.7]
[1766890981676,0.7,124.36,124.33,0.7]
[1766890988109,0.7,124.36,124.33,2.64046682]
[1766890993006,0.7,124.36,124.33,0.7]
[1766890993208,0.7,124.36,124.33,2.64046682]
[1766890995814,0.7,124.36,124.33,0.7]
[1766890995985,0.7,124.36,124.33,2.64046682]
[1766891014046,0.7,124.36,124.33,0.7]
[1766891014225,0.7,124.36,124.33,2.64046682]
[1766891016166,0.7,124.36,124.33,0.7]
[1766891024165,0.69,124.35,124.32,0.66]
[1766891024660,17.33046682,124.35,124.32,0.66]
[1766891026071,18.42292271,124.35,124.32,0.66]
[1766891028462,15.39,124.35,124.32,3.69292271]
[1766891028656,0.7,124.37,124.34,3.71292271]
[1766891030162,0.7,124.37,124.34,0.68]
[1766891040569,0.7,124.38,124.34,3.03292271]
[1766891040869,0.7,124.38,124.35,3.68292271]
[1766891043058,0.7,124.38,124.35,0.65]
[1766891044177,0.7,124.37,124.35,0.65]
[1766891047280,3.03292271,124.37,124.33,3.68292271]
[1766891047460,0.7,124.36,124.33,3.68292271]
[1766891051576,0.7,124.36,124.33,3.03292271]
[1766891051880,0.7,124.36,124.34,0.65]
[1766891054086,0.7,124.36,124.32,27.84042965]
[1766891054274,3.73292271,124.36,124.33,0.65]
[1766891054592,0.7,124.35,124.32,3.03292271]
[1766891054781,0.7,124.35,124.32,3.68292271]
[1766891055464,0.67,124.35,124.32,0.65]
[1766891055674,0.67,124.34,124.32,0.65]
[1766891064491,0.67,124.34,124.32,3.68292271]
[1766891068596,0.67,124.34,124.33,3.03292271]
[1766891068986,0.67,124.36,124.33,3.03292271]
[1766891070495,0.67,124.36,124.33,3.70292271]
[1766891074003,0.67,124.36,124.33,3.03292271]
[1766891074210,0.67,124.36,124.32,0.67]
[1766891074505,0.67,124.35,124.32,3.70292271]
[1766891079807,0.67,124.35,124.32,0.67]
[1766891080109,0.67,124.35,124.31,11.7472519]
[1766891081810,0.67,124.35,124.32,0.67]
[1766891083414,0.67,124.35,124.32,3.70292271]
[1766891085314,0.67,124.35,124.32,0.67]
[1766891101832,16.7517347,124.37,124.3,8.04432919]
[1766891102132,2.61089552,124.38,124.35,0.68]
[1766891102522,8.03866939,124.4,124.37,0.68]
[1766891102728,15.37,124.39,124.37,0.68]
[1766891102912,15.37,124.39,124.36,1.94089552]
[1766891103112,15.37,124.39,124.36,2.62089552]
[1766891103313,17.31089552,124.39,124.36,0.68]
[1766891104920,15.37,124.39,124.36,2.62089552]
[1766891105121,0.67,124.38,124.36,0.68]
[1766891132358,0.67,124.38,124.36,2.62089552]
[1766891133154,0.79,124.42,124.38,0.7]
[1766891133334,2.73089552,124.42,124.38,2.64089552]
[1766891133537,0.69,124.41,124.38,2.64089552]
[1766891145569,0.69,124.41,124.38,0.7]
[1766891145944,0.69,124.41,124.38,2.64089552]
[1766891147366,0.82,124.42,124.39,2.61089552]
[1766891147539,0.82,124.42,124.39,1.94089552]
[1766891147742,0.82,124.42,124.39,2.61089552]
[1766891147966,0.82,124.42,124.39,3.6990198]
[1766891159375,0.82,124.42,124.39,0.67]
[1766891159874,0.1,124.42,124.39,0.67]
[1766891160079,0.1,124.42,124.4,3.0290198]
[1766891160379,0.1,124.42,124.41,0.69]
[1766891161863,0.1,124.42,124.4,3.7190198]
[1766891162070,0.82,124.42,124.4,0.69]
[1766891169680,0.1,124.42,124.4,0.69]
[1766891169890,0.1,124.42,124.41,3.7190198]
[1766891176486,0.1,124.42,124.4,3.0290198]
[1766891176669,0.8,124.42,124.39,11.75817412]
[1766891177178,0.8,124.42,124.4,0.69]
[1766891181791,0.1,124.42,124.4,0.69]
[1766891201503,0.8,124.42,124.4,0.69]
[1766891209731,0.8,124.42,124.39,0.67]
[1766891210029,0.68,124.41,124.38,10.64818119]
[1766891210940,0.68,124.41,124.38,8.70926689]
[1766891211232,0.68,124.41,124.38,10.64818119]
[1766891223738,0.68,124.41,124.38,2.6089143]
[1766891224331,0.68,124.41,124.38,0.67]
[1766891225550,0.68,124.39,124.35,9.98032951]
[1766891225862,0.68,124.39,124.36,0.67]
[1766891226647,2.6189143,124.39,124.36,0.67]
[1766891229648,2.6189143,124.38,124.35,0.67]
[1766891229846,0.68,124.38,124.35,0.67]
[1766891230745,0.68,124.38,124.35,2.6089143]
[1766891230951,0.68,124.38,124.36,0.67]
[1766891261974,0.66,124.41,124.38,0.72]
[1766891262274,0.66,124.41,124.39,2.6589143]
[1766891268663,0.66,124.41,124.39,0.72]
[1766891272579,0.66,124.41,124.39,3.74936083]
[1766891272877,0.66,124.41,124.39,0.72]
[1766891273564,0.66,124.41,124.38,3.02936083]
[1766891273758,0.66,124.41,124.38,3.71936083]
[1766891275483,0.65,124.4,124.36,11.76028526]
[1766891275655,0.65,124.4,124.36,26.46028526]
[1766891276071,0.68,124.39,124.36,26.46028526]
[1766891277462,0.68,124.39,124.37,0.67]
[1766891277981,0.68,124.39,124.37,3.69936083]
[1766891282686,8.137323,124.42,124.35,3.69936083]
[1766891282687,0.68,124.38,124.35,3.69936083]
[1766891283282,0.68,124.38,124.35,3.02936083]
[1766891283471,0.68,124.38,124.36,0.67]
[1766891290691,0.68,124.38,124.36,3.69936083]
[1766891291490,0.68,124.38,124.36,0.67]
[1766891300101,0.68,124.38,124.35,11.07115366]
[1766891300298,3.02936083,124.38,124.35,8.72179283]
[1766891300476,0.69,124.38,124.35,8.72179283]
[1766891300682,0.69,124.38,124.35,11.75115366]
[1766891316822,0.69,124.38,124.35,3.70936083]
[1766891326336,0.69,124.38,124.35,0.68]
[1766891326632,0.69,124.38,124.35,3.70936083]
[1766891328733,0.69,124.38,124.35,0.68]
[1766891328954,0.69,124.38,124.35,3.70936083]
[1766891331936,0.69,124.38,124.35,2.61985057]
[1766891348252,0.69,124.38,124.35,0.68]
[1766891348426,0.69,124.38,124.35,2.61985057]
[1766891352851,0.69,124.38,124.35,0.68]
[1766891353052,0.69,124.38,124.35,2.61985057]
[1766891362841,0.69,124.38,124.35,0.68]
[1766891363142,0.69,124.38,124.35,2.61985057]
[1766891365270,0.69,124.38,124.35,0.68]
[1766891365558,0.69,124.38,124.35,2.61985057]
[1766891365743,10.68847991,124.4,124.36,0.66]
[1766891365939,9.97847991,124.4,124.36,0.66]
[1766891366152,2.64985057,124.39,124.34,8.04218245]
[1766891366358,0.71,124.38,124.35,2.59985057]
[1766891367365,0.71,124.38,124.35,0.66]
[1766891367550,0.71,124.37,124.35,0.66]
[1766891368865,1.93985057,124.37,124.33,0.66]
[1766891369160,2.64985057,124.36,124.33,0.66]
[1766891370971,0.71,124.36,124.33,0.66]
[1766891371163,2.64985057,124.36,124.33,0.66]
[1766891380101,0.71,124.36,124.33,0.66]
[1766891380309,0.71,124.36,124.33,2.59985057]
[1766891390414,0.71,124.36,124.33,0.66]
[1766891390600,0.71,124.36,124.33,2.59985057]
[1766891394018,0.71,124.36,124.33,3.6920526]
[1766891396918,0.71,124.36,124.33,0.66]
[1766891402122,0.71,124.36,124.33,3.6920526]
[1766891402324,0.71,124.36,124.33,0.66]
[1766891402704,0.71,124.36,124.33,3.6920526]
[1766891405326,0.71,124.36,124.33,3.0320526]
[1766891405527,3.7220526,124.37,124.34,0.68]
[1766891406228,3.0320526,124.37,124.34,0.68]
[1766891406424,0.69,124.36,124.34,0.68]
[1766891409210,0.69,124.36,124.33,3.0320526]
[1766891409413,0.69,124.36,124.33,3.7120526]
[1766891410332,0.69,124.36,124.33,0.68]
[1766891418448,11.07353358,124.36,124.31,0.7]
[1766891418735,0.66,124.35,124.32,0.7]
[1766891419744,0.66,124.32,124.3,0.7]
[1766891420132,0.66,124.32,124.29,3.7320526]
[1766891422533,0.66,124.32,124.29,0.7]
[1766891424937,3.6920526,124.32,124.29,0.7]
[1766891431240,0.66,124.32,124.29,0.7]
[1766891432138,0.66,124.32,124.29,3.7320526]
[1766891432544,0.66,124.32,124.29,11.77769851]
[1766891435220,0.66,124.32,124.29,11.07769851]
[1766891435526,0.66,124.32,124.3,0.7]
[1766891435736,0.66,124.34,124.31,3.0320526]
[1766891435939,0.66,124.34,124.32,3.7320526]
[1766891436140,0.66,124.34,124.32,3.0320526]
[1766891437633,0.66,124.34,124.31,3.7320526]
[1766891440443,0.66,124.34,124.31,8.74439883]
[1766891440635,0.66,124.34,124.31,11.77645143]
[1766891454061,0.66,124.34,124.31,10.68550162]
[1766891456772,0.66,124.34,124.31,2.64110279]
[1766891462167,0.66,124.34,124.31,0.7]
[1766891462342,2.60110279,124.34,124.31,0.7]
[1766891463546,0.66,124.34,124.31,0.7]
[1766891469170,0.66,124.34,124.31,2.64110279]
[1766891472873,0.66,124.34,124.31,0.7]
[1766891473049,0.66,124.34,124.31,2.64110279]
[1766891473250,0.6358697,124.34,124.31,1.94110279]
[1766891473470,1.94110279,124.35,124.32,0.71]
[1766891475175,2.66110279,124.35,124.32,0.71]
[1766891475381,0.72,124.34,124.31,1.94110279]
[1766891475559,0.72,124.34,124.31,2.62110279]
[1766891479153,0.72,124.33,124.28,0.2]
[1766891479363,2.66110279,124.32,124.29,0.68]
[1766891479557,0.72,124.31,124.29,0.68]
[1766891480278,0.72,124.31,124.29,2.62110279]
[1766891483576,0.72,124.31,124.29,0.68]
[1766891491782,0.72,124.31,124.28,2.14110279]
[1766891491988,0.72,124.31,124.28,2.82110279]
[1766891492289,1.94110279,124.31,124.28,0.2]
[1766891492482,0.72,124.29,124.28,0.2]
[1766891492684,2.66110279,124.29,124.28,0.2]
[1766891506775,0.7,124.3,124.28,0.2]
[1766891506977,1.94110279,124.29,124.28,0.2]
[1766891507889,2.64110279,124.29,124.28,0.2]
[1766891516008,3.73579462,124.29,124.28,0.2]
[1766891520409,0.7,124.29,124.28,0.2]
[1766891520607,3.73579462,124.29,124.28,0.2]
[1766891522689,0.65,124.28,124.26,0.2]
[1766891522901,3.68579462,124.27,124.26,0.2]
[1766891523211,3.03579462,124.27,124.25,0.2]
[1766891523412,3.03579462,124.28,124.24,0.2]
[1766891523413,3.68579462,124.26,124.24,0.2]
[1766891523605,3.03579462,124.25,124.24,0.2]
[1766891524395,3.03579462,124.25,124.24,0.86]
[1766891527694,0.65,124.24,124.23,0.2]
[1766891528024,3.68579462,124.24,124.23,0.2]
[1766891528323,3.03579462,124.24,124.23,0.2]
[1766891528537,3.68579462,124.25,124.23,0.2]
[1766891531028,3.68579462,124.25,124.23,0.86]
[1766891531827,3.68579462,124.26,124.23,0.86]
[1766891533527,3.03579462,124.26,124.23,0.86]
[1766891533730,0.65,124.25,124.23,0.86]
[1766891534227,3.68579462,124.26,124.23,0.86]
[1766891536628,3.68579462,124.26,124.23,0.88]
[1766891542435,3.68579462,124.26,124.23,0.2]
[1766891542640,3.68579462,124.26,124.23,0.88]
[1766891544238,0.65,124.26,124.23,0.2]
[1766891544445,0.65,124.26,124.23,0.88]
[1766891544629,3.68579462,124.26,124.23,0.88]
[1766891547155,0.65,124.26,124.23,0.88]
[1766891551851,15.41,124.27,124.24,0.68]
[1766891552046,14.7,124.27,124.24,0.68]
[1766891552248,0.71,124.27,124.24,0.68]
[1766891552746,3.74579462,124.27,124.24,0.68]
[1766891552937,0.71,124.26,124.24,0.68]
[1766891557458,3.74579462,124.25,124.23,0.2]
[1766891557638,3.74579462,124.26,124.23,0.88]
[1766891563177,3.03579462,124.26,124.23,0.88]
[1766891563377,0.71,124.25,124.23,0.88]
[1766891568279,0.71,124.25,124.23,0.2]
[1766891569582,0.71,124.25,124.23,0.89]
[1766891584088,0.69,124.3,124.25,0.69]
[1766891584266,2.6337823,124.29,124.26,0.69]
[1766891585074,0.69,124.28,124.26,0.69]
[1766891585281,0.69,124.28,124.25,2.6337823]
[1766891587188,2.6337823,124.28,124.25,0.69]
[1766891588398,0.69,124.28,124.25,0.69]
[1766891588694,2.6337823,124.28,124.25,0.69]
[1766891601013,2.6337823,124.28,124.25,2.6337823]
[1766891601214,0.69,124.28,124.25,2.6337823]
[1766891601509,2.6337823,124.28,124.25,2.6337823]
[1766891603325,2.6337823,124.28,124.25,0.69]
[1766891603518,2.6337823,124.28,124.25,2.6337823]
[1766891605431,2.6337823,124.28,124.25,0.69]
[1766891605623,2.6337823,124.28,124.25,2.6337823]
[1766891608731,2.6337823,124.28,124.25,0.69]
[1766891609117,1.9437823,124.26,124.24,0.68]
[1766891610727,0.71,124.27,124.24,0.68]
[1766891610932,1.9437823,124.26,124.24,0.68]
[1766891617009,2.6537823,124.27,124.24,0.68]
[1766891621441,0.71,124.26,124.24,0.68]
[1766891621629,0.71,124.26,124.23,0.88]
[1766891621839,2.6537823,124.26,124.23,0.88]
[1766891627049,0.71,124.26,124.23,0.88]
[1766891628857,2.6537823,124.26,124.23,0.88]
[1766891633235,0.72,124.25,124.23,0.88]
[1766891637266,3.0374324,124.26,124.23,0.88]
[1766891637564,3.7574324,124.26,124.23,0.88]
[1766891638461,0.72,124.25,124.23,0.88]
[1766891641566,0.72,124.25,124.23,0.2]
[1766891643349,0.72,124.25,124.23,0.9]
[1766891643867,8.04728613,124.27,124.23,0.9]
[1766891644070,3.7574324,124.26,124.23,0.9]
[1766891645967,0.72,124.25,124.23,0.2]
[1766891649458,3.7574324,124.25,124.23,0.2]
[1766891653284,3.0374324,124.25,124.23,0.9]
[1766891655603,3.7374324,124.25,124.23,0.2]
[1766891658394,0.7,124.25,124.23,0.2]
[1766891661980,3.7374324,124.25,124.23,0.2]
[1766891676814,0.7,124.25,124.23,0.2]
[1766891677812,3.7374324,124.25,124.23,0.2]
[1766891681321,0.7,124.24,124.23,0.2]
[1766891682514,3.0374324,124.25,124.23,0.2]